[Event "44th Chess Olympiad Open 2022"]
[Site "Chennai"]
[Date "2022.08.09"]
[Round "11.7"]
[White "Bartel, Mateusz"]
[Black "Solak, Dragan"]
[Result "1-0"]
[ECO "E11"]
[WhiteElo "2597"]
[BlackElo "2594"]
[Annotator "TA"]
[PlyCount "151"]
[EventDate "2022.07.29"]
[EventType "team-tourn"]
[EventCountry "IND"]
[SourceTitle "playchess.com"]
[Source "ChessBase"]
[SourceQuality "1"]
[WhiteTeam "Poland"]
[BlackTeam "Turkey"]
[WhiteTeamCountry "POL"]
[BlackTeamCountry "TUR"]
[TimeControl "40/5400+30:1800+30"]

{[%evp 20,151,8,-4,0,0,0,-16,-22,-24,0,-80,-3,-2,0,-8,-1,-4,-18,-22,-15,-11,-4,-16,0,-7,0,0,0,0,6,8,4,-9,-9,-6,-6,-18,0,-4,-7,-12,-5,-6,-7,-6,0,-3,0,-8,-10,-13,-7,-13,20,21,39,24,24,24,26,26,25,24,24,24,25,25,63,63,63,63,63,63,63,63,63,63,63,63,63,63,63,63,63,63,63,63,63,63,488,488,488,473,464,65,29959,29956,29955,29957,29957,29958,29958,29961,29961,29961,11090,5527,2769,0,2421,2086,1343,115,2426,14,29965,29964,29966,29968,29976,29977,29978,29979,29979,29980,29980,29981,29981,29982,29982,29983,29982,29983]} 1. d4 {[%emt 0:00:04]} d5 {[%emt 0:00:04]} 2. c4 {[%emt 0:00:11]} c6 {[%emt 0:00:03]} 3. Nf3 {[%emt 0:00:06]} Nf6 {[%emt 0:00:03]} 4. Qb3 {[%emt 0:00:10]} e6 {[%emt 0:03:18]} 5. Nc3 {[%emt 0:01:27]} Be7 {[%emt 0:04:10]} 6. g3 {[%emt 0:01:54]} O-O {[%emt 0:01:27]} 7. Bg2 {[%emt 0:00:04]} b6 {[%emt 0:04:26]} 8. O-O {[%emt 0:06:17]} Ba6 {[%emt 0:01:05]} 9. cxd5 {[%emt 0:01:46]} cxd5 {[%emt 0:02:00]} 10. Ne5 {[%emt 0:00:08]} Bb7 {[%emt 0:07:27]} 11. Bf4 {[%emt 0:00:04]} Nc6 {[%emt 0:02:15] E11: Bogo-Indian.} 12. Rfd1 {[%emt 0:21:23]} Na5 {[%emt 0:19:26]} 13. Qc2 {[%emt 0:01:31]} Rc8 {[%emt 0:00:31] The position is equal.} 14. Rac1 {[%emt 0:00:36]} Ne4 {[%emt 0:04:26] [#]} 15. Qd3 $146 {[%emt 0:03:11]} (15. Bxe4 $11 {remains equal.} dxe4 16. Qb1) ({Predecessor:} 15. f3 Nxc3 16. bxc3 Ba3 17. Rb1 Bd6 18. Rbc1 Rc7 19. e4 Qe7 20. Nd3 Rfc8 21. Qd2 {0-1 (36) Martin Del Campo C,J (2346)-Nogueiras Santiago,J (2528) Merida 2002}) 15... Nxc3 {[%emt 0:25:34]} (15... f6 $17 16. Ng4 Nc4) 16. Rxc3 $11 {[%emt 0:01:06]} Rxc3 {[%emt 0:00:36]} 17. Qxc3 {[%emt 0:00:47]} f6 {[%emt 0:03:49]} 18. Nd3 {[%emt 0:08:06]} Qd7 {[%emt 0:00:33]} 19. b3 {[%emt 0:03:25]} Rc8 {[%emt 0:00:31]} 20. Qb2 {[%emt 0:00:14]} Nc6 {[%emt 0:03:32]} 21. h4 {[%emt 0:05:45]} Nb4 {[%emt 0:07:30]} 22. Ne1 {[%emt 0:02:51]} Nc6 {[%emt 0:01:38]} 23. Bh3 {[%emt 0:01:30]} Nd8 {[%emt 0:00:30]} 24. Ng2 {[%emt 0:03:29]} Qc6 {[%emt 0:01:53]} 25. Rc1 {[%emt 0:02:33]} Qd7 {[%emt 0:00:08]} 26. h5 {[%emt 0:06:17]} Rxc1+ {[%emt 0:00:28]} 27. Qxc1 {[%emt 0:00:06]} Qc8 {[%emt 0:03:52]} 28. Qe3 {[%emt 0:03:46]} Ba6 {[%emt 0:00:34]} 29. Qd2 {[%emt 0:00:57]} Qc6 {[%emt 0:00:53]} 30. Be3 {[%emt 0:00:46]} Bc8 {[%emt 0:01:32]} 31. Nf4 {[%emt 0:00:39]} Nf7 {[%emt 0:00:45]} 32. Nd3 {[%emt 0:00:38]} Nd6 {[%emt 0:00:47]} 33. f3 {[%emt 0:06:17]} Nf7 {[%emt 0:00:39]} 34. Kh2 {[%emt 0:02:36]} a5 {[%emt 0:00:13]} 35. Nf4 {[%emt 0:02:39]} Ng5 {[%emt 0:00:38]} 36. Bg4 {[%emt 0:01:12]} Kf7 {[%emt 0:00:39]} 37. Nd3 {[%emt 0:02:43] Strongly threatening Bxg5.} Qc7 {[%emt 0:00:31]} 38. Bf4 {[%emt 0:02:20]} Bd6 {[%emt 0:00:24]} 39. Bxg5 {[%emt 0:00:21]} fxg5 {[%emt 0:00:03]} 40. Qxg5 {[%emt 0:00:16]} Bxg3+ {[%emt 0:00:59]} 41. Kg2 {[%emt 0:31:24]} Bd6 {[%emt 0:03:55]} 42. h6 {[%emt 0:00:00]} g6 {[%emt 0:02:37]} 43. Ne5+ {[%emt 0:00:00]} Bxe5 {[%emt 0:02:19]} 44. dxe5 {[%emt 0:00:00][%mdl 4096] Endgame KQB-KQB} Qe7 {[%emt 0:00:24] Prevents Qf6+.} 45. Qe3 {[%emt 0:00:00] White is more active.} Qc5 {[%emt 0:01:52]} 46. Qf4+ {[%emt 0:00:00]} Ke8 {[%emt 0:00:14]} 47. Qf6 {[%emt 0:00:00]} Qf8 {[%emt 0:02:25]} 48. Qxf8+ {[%emt 0:00:00]} ({Not} 48. Qg7 Qxg7 49. hxg7 Kf7 $17) 48... Kxf8 $14 {[%emt 0:00:03] KB-KB} 49. Kf2 {[%emt 0:00:00]} Ke7 {[%emt 0:01:31]} 50. Ke3 {[%emt 0:00:00]} Ba6 {[%emt 0:00:12]} 51. f4 {[%emt 0:00:00]} Bb5 {[%emt 0:01:53]} 52. Kd4 {[%emt 0:00:00]} Ba6 {[%emt 0:00:08]} 53. Kc3 {[%emt 0:00:00]} Bb5 {[%emt 0:00:36]} 54. e3 {[%emt 0:00:00]} Be8 $2 {[%emt 0:10:07][%mdl 8192] White now steadily converts the win.} (54... Bd7 $14) 55. b4 $1 $18 {[%emt 0:00:00]} axb4+ {[%emt 0:00:11]} 56. Kxb4 {[%emt 0:00:00]} Bd7 {[%emt 0:09:30]} 57. Be2 $2 {[%emt 0:00:00]} (57. Bd1 $1 $18 {[%cal Rd1a4]}) 57... Kf7 $2 {[%emt 0:00:17][%mdl 8192]} (57... Be8 $14) 58. Bd3 {[%emt 0:00:00]} Bc6 {[%emt 0:00:18]} 59. Bc2 {[%emt 0:00:07]} Bd7 {[%emt 0:00:13]} 60. a3 {[%emt 0:00:15]} Kf8 {[%emt 0:00:25]} 61. Ba4 {[%emt 0:04:12]} Bc8 {[%emt 0:00:03]} 62. Bc6 {[%emt 0:02:12]} Ba6 {[%emt 0:00:02]} 63. Bb5 {[%emt 0:01:14]} Bc8 {[%emt 0:01:52]} 64. Bc6 {[%emt 0:00:57] Intending Kb5 and mate.} Ba6 $1 {[%emt 0:00:03] [#]} 65. Bd7 $1 {[%emt 0:00:27]} Kf7 {[%emt 0:00:32]} 66. a4 $2 {[%emt 0:03:13]} (66. Bb5 $18 {and the rest is easy.} Bb7 67. a4) 66... Ke7 $2 {[%emt 0:00:53][%mdl 8192]} (66... Bd3 $16) 67. Bc6 $2 {[%emt 0:00:02]} ({White has to play} 67. Bb5 $18 Bc8 68. a5 bxa5+ 69. Kxa5) 67... Kf7 $2 {[%emt 0:00:48][%mdl 8192] [#]} (67... Bd3 $11) 68. Bb5 $1 {[%emt 0:00:49] White mates.} Bc8 {[%emt 0:00:40]} 69. a5 {[%emt 0:00:26]} bxa5+ {[%emt 0:00:03]} 70. Kxa5 {[%emt 0:00:04]} g5 {[%emt 0:01:00]} 71. fxg5 {[%emt 0:01:29]} Kg6 {[%emt 0:00:03]} 72. Kb6 {[%emt 0:00:22]} Kxg5 {[%emt 0:00:05]} 73. Kc7 {[%emt 0:00:04]} Kf5 {[%emt 0:00:47]} 74. Kxc8 {[%emt 0:01:09]} Kxe5 {[%emt 0:00:03]} 75. Kd7 {[%emt 0:00:56]} Kf6 {[%emt 0:00:21]} 76. Kd6 {[%emt 0:00:08] Weighted Error Value: White=0.21 (precise) /Black=0.36} 1-0

[Event "44th Chess Olympiad Open 2022"]
[Site "Chennai"]
[Date "2022.08.09"]
[Round "11.7"]
[White "Ali Marandi, Cemil Can"]
[Black "Moranda, Wojciech"]
[Result "1-0"]
[ECO "B15"]
[WhiteElo "2561"]
[BlackElo "2636"]
[Annotator "TA"]
[PlyCount "83"]
[EventDate "2022.07.29"]
[EventType "team-tourn"]
[EventCountry "IND"]
[SourceTitle "playchess.com"]
[Source "ChessBase"]
[SourceQuality "1"]
[WhiteTeam "Turkey"]
[BlackTeam "Poland"]
[WhiteTeamCountry "TUR"]
[BlackTeamCountry "POL"]
[TimeControl "40/5400+30:1800+30"]

{[%evp 14,83,25,22,23,19,40,27,28,21,54,2,31,0,0,0,0,0,0,0,0,0,0,0,0,0,0,0,0,0,0,0,0,0,142,0,0,0,25,18,30,37,37,31,39,39,97,92,103,99,147,142,149,146,141,138,138,134,171,169,177,164,142,150,272,272,589,589,582,582,29976,29970]} 1. e4 {[%emt 0:00:03]} c6 {[%emt 0:00:08]} 2. d4 {[%emt 0:00:06]} d5 {[%emt 0:00:10]} 3. Nc3 {[%emt 0:00:07]} dxe4 {[%emt 0:00:11]} 4. Nxe4 {[%emt 0:00:05]} Nf6 {[%emt 0:00:16]} 5. Nxf6+ {[%emt 0:00:14]} exf6 {[%emt 0:00:08]} 6. c3 {[%emt 0:00:09]} Bd6 {[%emt 0:00:11]} 7. Bd3 {[%emt 0:00:10]} O-O {[%emt 0:00:12]} 8. Qc2 {[%emt 0:00:05] Active counter play!} Re8+ {[%emt 0:00:17] B15: Caro-Kann: 3 Nc3: 3...g6 and 3...dxe4 4 Nxe4 Nf6 5 Nxf6+ exf6.} 9. Ne2 {[%emt 0:00:08]} h5 {[%emt 0:00:35][%cal Bh7h5,Bh5g4,Bg4h3][%mdl 32]} 10. Be3 {[%emt 0:00:20]} Nd7 {[%emt 0:00:41] White has an edge.} 11. O-O-O {[%emt 0:00:26]} b5 {[%emt 0:00:15]} 12. g4 $5 {[%emt 0:00:11][%mdl 4] Exploring less charted territory.} (12. d5 $14) 12... hxg4 $11 {[%emt 0:06:27]} 13. Rdg1 {[%emt 0:00:13] Strongly threatening h3.} Nf8 $1 {[%emt 0:10:29] [#]} 14. Ng3 $146 {[%emt 0:00:54]} ({Predecessor:} 14. h3 Be6 15. Kb1 Qa5 16. b3 c5 17. dxc5 Be5 18. f4 gxf3 19. Nd4 Rad8 20. b4 {0-1 (28) Balabayeva,K (2146)-Amburgy,R (1905) Chess.com INT 2020}) 14... g6 {[%emt 0:01:40] Against Nf5} 15. h3 {[%emt 0:03:25] aiming for hxg4.} Bxg3 {[%emt 0:29:50]} ({But not} 15... gxh3 $6 16. Ne4 $15) 16. Rxg3 {[%emt 0:00:21]} Qd5 {[%emt 0:00:34]} 17. Rh2 {[%emt 0:00:28]} gxh3 {[%emt 0:08:38]} 18. f4 {[%emt 0:04:21]} Bg4 {[%emt 0:11:24]} 19. f5 $1 {[%emt 0:08:12][%cal Rf5g6]} Rxe3 {[%emt 0:03:11]} 20. Rxe3 {[%emt 0:01:15] Rg3 is the strong threat.} gxf5 {[%emt 0:00:11]} 21. Bf1 {[%emt 0:17:25][%cal Bd3f1,Bf1h3,Bh3g4][%mdl 32]} Ng6 {[%emt 0:01:54] Hoping for ...f4.} 22. Bxh3 {[%emt 0:01:24]} Kg7 {[%emt 0:03:57]} 23. Rg3 {[%emt 0:08:07]} Qd6 {[%emt 0:05:13] [#]} (23... Qe6 $11 24. Qf2 Rh8) 24. Qf2 {[%emt 0:04:30]} ({White has to play} 24. Rhg2 $1 $16) 24... Rh8 {[%emt 0:01:02][%cal Oc6c5]} 25. Kb1 {[%emt 0:11:22]} ({Reject} 25. Bxg4 Rxh2 26. Qxh2 Qf4+ 27. Qd2 Qxg3 28. Bxf5 Ne7 $15) 25... Qf4 {[%emt 0:03:03]} 26. Qxf4 $1 {[%emt 0:02:34]} Nxf4 {[%emt 0:00:07] [#]} 27. Bxg4 {[%emt 0:00:04]} Rxh2 {[%emt 0:00:10]} 28. Bxf5+ {[%emt 0:00:03][%mdl 4096] Endgame KRB-KRN} Kf8 {[%emt 0:03:49]} 29. Bd7 {[%emt 0:00:21]} Ke7 {[%emt 0:04:27]} (29... Rh1+ $14 30. Kc2 Rh2+ 31. Kb1 Rh1+ 32. Kc2 Rh2+ 33. Kb3 Ne2) 30. Bxc6 $16 {[%emt 0:00:13]} a6 {[%emt 0:00:12]} 31. a4 {[%emt 0:06:19]} bxa4 {[%emt 0:01:47]} (31... Rh5 $142) 32. Bxa4 {[%emt 0:00:08]} Ne6 {[%emt 0:01:14]} 33. Re3 {[%emt 0:02:53] Threatens to win with d5.} Kd6 {[%emt 0:01:23]} 34. Rf3 {[%emt 0:00:14]} Ke7 {[%emt 0:01:18]} 35. Rf5 {[%emt 0:00:17]} Rg2 {[%emt 0:00:41]} 36. Ra5 {[%emt 0:01:19]} Nc7 {[%emt 0:00:55]} 37. Rc5 {[%emt 0:00:26]} Ne6 {[%emt 0:00:32]} 38. Rc6 {[%emt 0:03:40]} a5 {[%emt 0:01:21] [#]} (38... Ng5 $16 39. Bc2 (39. Rxa6 f5 $16) 39... Rf2 40. Rxa6 f5 41. Ra7+ Ke6) 39. d5 $1 $18 {[%emt 0:00:57][%cal Bd4d5,Bd5d6][%mdl 32]} Nf4 $2 {[%emt 0:00:24]} (39... Rg1+ {is more resistant.} 40. Ka2 Rg4) 40. d6+ {[%emt 0:00:38]} Ke6 {[%emt 0:00:04]} 41. d7+ {[%emt 0:30:55]} Ke7 {[%emt 0:03:56]} 42. Rc8 {[%emt 0:00:00] Prevents Rg8.  Weighted Error Value: White=0.08 (flawless) /Black=0.40} 1-0

[Event "44th Chess Olympiad Open 2022"]
[Site "Chennai"]
[Date "2022.08.09"]
[Round "11.8"]
[White "Volokitin, Andrei"]
[Black "Laurusas, Tomas"]
[Result "1/2-1/2"]
[ECO "C42"]
[WhiteElo "2674"]
[BlackElo "2561"]
[Annotator "TA"]
[PlyCount "141"]
[EventDate "2022.07.29"]
[EventType "team-tourn"]
[EventCountry "IND"]
[SourceTitle "playchess.com"]
[Source "ChessBase"]
[SourceQuality "1"]
[WhiteTeam "Ukraine"]
[BlackTeam "Lithuania"]
[WhiteTeamCountry "UKR"]
[BlackTeamCountry "LTU"]
[TimeControl "40/5400+30:1800+30"]

{[%evp 15,141,24,35,28,36,27,24,16,28,28,35,35,26,22,41,27,33,33,29,30,35,0,0,12,0,0,0,0,0,0,0,0,0,0,0,0,0,0,0,0,0,0,0,0,0,0,0,0,-5,-29,-35,-29,-29,-29,-37,-37,-37,-44,-51,-78,-100,-112,-109,-286,-279,-272,-271,-277,-315,-686,-667,-765,-681,-784,-870,-775,-647,-643,-633,-623,-506,-455,0,0,0,0,0,0,0,0,0,0,0,0,0,0,0,0,0,0,0,0,0,0,0,0,0,0,0,0,0,0,0,0,0,0,0,0,0,0,0,0,0,0,0,0,0,0]} 1. e4 {[%emt 0:00:03] Rogozenco,D} e5 {[%emt 0:00:09]} 2. Nf3 {[%emt 0:00:06]} Nf6 {[%emt 0:00:07]} 3. Nxe5 {[%emt 0:00:10]} d6 {[%emt 0:00:07]} 4. Nf3 {[%emt 0:00:04]} Nxe4 {[%emt 0:00:06]} 5. Nc3 {[%emt 0:00:05]} Nxc3 {[%emt 0:00:27]} 6. dxc3 {[%emt 0:00:05]} Be7 {[%emt 0:00:11]} 7. Be3 {[%emt 0:00:06]} Nc6 {[%emt 0:00:09]} 8. Qd2 {[%emt 0:00:14]} Be6 {[%emt 0:00:09] 8...Bf5 injects fresh life into this line.} 9. O-O-O {[%emt 0:00:15] C42: Petroff Defence: 3 Nxe5 and unusual White 3rd moves.} Qd7 {[%emt 0:00:07]} (9... Bxa2 $2 10. b3 $18) 10. h4 {[%emt 0:00:56]} h6 {[%emt 0:00:07]} (10... Bxa2 $2 11. b3 $18) 11. Kb1 {[%emt 0:02:52] White has an edge.} Bf6 {[%emt 0:00:08]} 12. Nd4 {[%emt 0:10:56]} Nxd4 {[%emt 0:00:19]} 13. Bxd4 {[%emt 0:00:03]} Bxd4 {[%emt 0:00:10]} 14. Qxd4 {[%emt 0:00:16]} O-O {[%emt 0:00:08]} 15. Be2 {[%emt 0:03:08]} (15. Rg1 {is more complex.} Qc6 16. Bd3 Qd5 17. Qa4) 15... Rae8 {[%emt 0:00:07][%cal Oe6a2] [#] Hoping for ...Bxa2+!} 16. Bf3 {[%emt 0:07:22]} b6 {[%emt 0:00:53]} 17. g4 {[%emt 0:06:37]} Qb5 {[%emt 0:05:06] [#]} 18. b3 $146 {[%emt 0:25:31][%cal Og4g5]} (18. g5 {with more complications.} Qc4 19. gxh6 Qxd4 20. cxd4 gxh6 21. Bc6) ({Predecessor:} 18. g5 Qc4 19. gxh6 Qxd4 20. Rxd4 gxh6 21. Bc6 Rd8 22. Ra4 a5 23. b4 axb4 24. cxb4 {½-½ (47) Ponomariov,R (2751)-Wang,H (2733) Bucharest 2013 CBM 157 [Rogozenco,D]}) 18... Qc5 {[%emt 0:00:47]} 19. Qd2 {[%emt 0:00:11]} Bd7 {[%emt 0:00:05]} 20. Rhg1 {[%emt 0:18:41]} Bc6 {[%emt 0:03:24]} 21. Bxc6 {[%emt 0:02:18]} Qxc6 {[%emt 0:00:08]} 22. h5 {[%emt 0:05:07]} Qf3 {[%emt 0:12:17]} 23. Rde1 {[%emt 0:02:28] Inhibits Re2.} Rxe1+ {[%emt 0:30:53]} 24. Qxe1 $11 {[%emt 0:00:02][%mdl 4096] Endgame KQR-KQR} Qc6 {[%emt 0:00:20]} 25. Rg3 {[%emt 0:09:33]} Re8 {[%emt 0:02:15]} 26. Re3 {[%emt 0:00:07]} Rxe3 {[%emt 0:02:05]} 27. Qxe3 {[%emt 0:00:02] KQ-KQ} Kf8 {[%emt 0:01:07]} 28. Kb2 {[%emt 0:00:06]} Qd5 {[%emt 0:01:56]} 29. f4 {[%emt 0:03:39]} a5 {[%emt 0:04:22]} 30. f5 {[%emt 0:03:47]} Qe5 {[%emt 0:00:50]} 31. Qd3 {[%emt 0:00:29]} Ke7 {[%emt 0:01:41]} 32. Qa6 {[%emt 0:00:26]} d5 {[%emt 0:03:52]} 33. Qc8 {[%emt 0:00:14]} d4 {[%emt 0:06:34]} 34. cxd4 {[%emt 0:00:28]} Qxd4+ {[%emt 0:00:02]} 35. Kc1 {[%emt 0:00:28]} Qd6 {[%emt 0:00:09]} 36. a4 {[%emt 0:00:58]} Kf6 {[%emt 0:00:17]} 37. Kb1 {[%emt 0:00:27]} Kg5 {[%emt 0:02:32]} 38. Ka2 {[%emt 0:00:11]} Qe7 {[%emt 0:08:24]} 39. Qg8 $2 {[%emt 0:00:51]} (39. Kb1 $17) 39... Qf6 $19 {[%emt 0:00:43]} ({Worse is} 39... Kxg4 40. Qxg7+ Kxh5 41. Kb1 $17) 40. Qb8 {[%emt 0:00:19]} Qc6 {[%emt 0:09:06]} ({Don't blunder} 40... Kxg4 $2 41. Qxc7 Kxh5 42. c4 $17) 41. c4 {[%emt 0:07:39]} Kxg4 {[%emt 0:00:46]} 42. f6 $2 {[%emt 0:00:24]} (42. Qf8 Qf6 43. c5) 42... Qxf6 {[%emt 0:11:28]} 43. Qxc7 {[%emt 0:00:18]} Qf2+ {[%emt 0:00:07]} 44. Kb1 {[%emt 0:00:59]} Kxh5 {[%emt 0:00:30]} 45. c5 {[%emt 0:03:33]} Qxc5 {[%emt 0:00:44]} 46. Qxf7+ {[%emt 0:00:14]} g6 {[%emt 0:00:06]} 47. Qe8 {[%emt 0:02:04]} Qf2 {[%emt 0:06:43] Prevents Qe2+.} 48. Ka1 {[%emt 0:01:12]} Kh4 $2 {[%emt 0:06:43]} (48... Kg5 $19 49. Qe5+ Kh4 50. Qe4+ Kh5 51. Qh1+ Kg5 52. Qd5+ Qf5 53. Qd2+ Qf4 54. Qd5+ Kh4 55. Qh1+ Kg4 56. Qd1+ Kf5 57. Qd7+ Ke4 58. Qc6+ Kf5 59. Qd7+ Kg5 60. Qd5+ Kh4 61. Qh1+ Kg4 62. Qd1+ Kf5 63. Qd7+) 49. Qxg6 $11 {[%emt 0:01:01] The position is equal.} Qd4+ {[%emt 0:08:51]} 50. Ka2 {[%emt 0:00:09]} h5 {[%emt 0:00:01]} 51. Qg2 {[%emt 0:01:09]} Qe3 {[%emt 0:02:06]} 52. Qh1+ {[%emt 0:04:17]} Kg4 {[%emt 0:00:12]} 53. Qd1+ {[%emt 0:00:23]} Qf3 {[%emt 0:00:43]} 54. Qg1+ {[%emt 0:00:23]} Kf4 {[%emt 0:00:32]} 55. Qxb6 {[%emt 0:01:23]} h4 {[%emt 0:00:37]} 56. Qxa5 {[%emt 0:07:56]} h3 {[%emt 0:00:07]} 57. Qc7+ {[%emt 0:01:02]} Kg4 {[%emt 0:01:12]} 58. Qg7+ {[%emt 0:04:34]} Kh4 {[%emt 0:00:02]} 59. Qe7+ {[%emt 0:01:04]} Kg3 {[%emt 0:00:07]} 60. Qe5+ {[%emt 0:00:27]} Kf2 {[%emt 0:01:26] [#] ( -> ...Qe2+)} 61. Ka3 {[%emt 0:00:31]} Qf8+ {[%emt 0:02:07]} 62. Ka2 {[%emt 0:00:02] And now Qh2+ would win.} Kg2 {[%emt 0:01:27] Prevents Qh2+.} 63. Qg5+ {[%emt 0:00:06]} Kf1 {[%emt 0:00:14]} 64. Qc1+ {[%emt 0:00:20]} Kf2 {[%emt 0:00:24]} 65. Qd2+ {[%emt 0:00:09]} Kf3 {[%emt 0:00:16]} 66. a5 {[%emt 0:01:24]} Qf4 {[%emt 0:00:00]} 67. Qd5+ {[%emt 0:00:09]} Kg3 {[%emt 0:01:04]} 68. Qd3+ {[%emt 0:00:57]} Kh4 {[%emt 0:01:40]} 69. Qh7+ {[%emt 0:00:56]} Kg3 {[%emt 0:00:05]} 70. Qd3+ {[%emt 0:00:04]} Kh4 {[%emt 0:00:35]} 71. Qh7+ {[%emt 0:00:43] And White is the lucky defender.  Weighted Error Value: White=0.19 (very precise) /Black=0.11 (very precise)} 1/2-1/2